[Event "Late-Titled-Tuesday-Blitz-October-24-2023"]
[Site "Chess.com"]
[Date "2023.10.24"]
[Round "5"]
[White "Maluco_do_Natal_00"]
[Black "alfianasybullina"]
[Result "1-0"]
[WhiteElo "2034"]
[BlackElo "2272"]
[TimeControl "180+1"]
[EndTime "14:54:07 PDT"]
[Termination "Maluco_do_Natal_00 won by resignation"]

1. e4 {[%clk 0:03:00.9]} 1... c6 {[%clk 0:02:58.7]} 2. d4 {[%clk 0:03:00.8]}
2... d5 {[%clk 0:02:58.4]} 3. Nc3 {[%clk 0:03:01.4]} 3... dxe4 {[%clk
0:02:57.4]} 4. Nxe4 {[%clk 0:03:02.3]} 4... Nd7 {[%clk 0:02:57.7]} 5. Nf3 {[%clk
0:03:01.5]} 5... Ngf6 {[%clk 0:02:57.8]} 6. Nxf6+ {[%clk 0:03:02.1]} 6... Nxf6
{[%clk 0:02:58.7]} 7. Bd3 {[%clk 0:03:02.1]} 7... Bg4 {[%clk 0:02:58.9]} 8. c3
{[%clk 0:02:57.6]} 8... e6 {[%clk 0:02:58.6]} 9. O-O {[%clk 0:02:56]} 9... Bd6
{[%clk 0:02:58.7]} 10. h3 {[%clk 0:02:56.3]} 10... Bh5 {[%clk 0:02:58.5]} 11.
Re1 {[%clk 0:02:54.6]} 11... O-O {[%clk 0:02:57.7]} 12. a4 {[%clk 0:02:40.4]}
12... Bg6 {[%clk 0:02:54.5]} 13. Bxg6 {[%clk 0:02:37.6]} 13... hxg6 {[%clk
0:02:55.4]} 14. Ne5 {[%clk 0:02:32.3]} 14... Bxe5 {[%clk 0:02:55.4]} 15. Rxe5
{[%clk 0:02:31.6]} 15... Qd7 {[%clk 0:02:53]} 16. a5 {[%clk 0:02:25]} 16... Rfd8
{[%clk 0:02:51.7]} 17. Qf3 {[%clk 0:02:16.6]} 17... Nd5 {[%clk 0:02:48.8]} 18.
Bd2 {[%clk 0:02:07.8]} 18... b6 {[%clk 0:02:32.9]} 19. axb6 {[%clk 0:01:58.8]}
19... axb6 {[%clk 0:02:33.8]} 20. Ree1 {[%clk 0:01:59.2]} 20... c5 {[%clk
0:02:31.6]} 21. dxc5 {[%clk 0:01:52.6]} 21... bxc5 {[%clk 0:02:32.5]} 22. Bg5
{[%clk 0:01:51.4]} 22... Rdb8 {[%clk 0:02:29.7]} 23. Qe2 {[%clk 0:01:43.1]}
23... Rxa1 {[%clk 0:02:24]} 24. Rxa1 {[%clk 0:01:42.2]} 24... f6 {[%clk
0:02:20.9]} 25. Bc1 {[%clk 0:01:29]} 25... e5 {[%clk 0:02:20.3]} 26. Qc4 {[%clk
0:01:21.2]} 26... Qc6 {[%clk 0:02:12]} 27. Ra6 {[%clk 0:01:15.8]} 27... Qb7
{[%clk 0:02:07.6]} 28. Rd6 {[%clk 0:01:09.2]} 28... Kh7 {[%clk 0:02:03.9]} 29.
Qxd5 {[%clk 0:01:07.6]} 29... Qa7 {[%clk 0:02:00.1]} 30. Be3 {[%clk 0:00:31]}
30... Rxb2 {[%clk 0:01:58.4]} 31. Rd7 {[%clk 0:00:30.2]} 31... Qa1+ {[%clk
0:01:54.5]} 32. Kh2 {[%clk 0:00:29.7]} 32... Rb1 {[%clk 0:01:55]} 33. Qf7 {[%clk
0:00:26.5]} 33... Rh1+ {[%clk 0:01:49.1]} 34. Kg3 {[%clk 0:00:24.5]} 34... Rxh3+
{[%clk 0:01:41.5]} 1-0

[Event "Late-Titled-Tuesday-Blitz-October-24-2023"]
[Site "Chess.com"]
[Date "2023.10.24"]
[Round "5"]
[White "campochess"]
[Black "ATM622"]
[Result "1/2-1/2"]
[WhiteElo "2223"]
[BlackElo "2414"]
[TimeControl "180+1"]
[EndTime "14:54:12 PDT"]
[Termination "Game drawn by repetition"]

1. d4 {[%clk 0:02:45.7]} 1... Nf6 {[%clk 0:02:58.8]} 2. Bg5 {[%clk 0:02:44.4]}
2... d5 {[%clk 0:02:57.8]} 3. Nd2 {[%clk 0:02:43.4]} 3... Bf5 {[%clk 0:02:55.8]}
4. e3 {[%clk 0:02:41.9]} 4... e6 {[%clk 0:02:55.3]} 5. Bd3 {[%clk 0:02:41.6]}
5... Bxd3 {[%clk 0:02:54.9]} 6. cxd3 {[%clk 0:02:41.5]} 6... Be7 {[%clk
0:02:53.1]} 7. Ngf3 {[%clk 0:02:40.1]} 7... O-O {[%clk 0:02:52.9]} 8. Ne5 {[%clk
0:02:40]} 8... Nbd7 {[%clk 0:02:50.2]} 9. f4 {[%clk 0:02:39.7]} 9... c5 {[%clk
0:02:50.5]} 10. Nxd7 {[%clk 0:02:37.6]} 10... Qxd7 {[%clk 0:02:48.8]} 11. dxc5
{[%clk 0:02:37.3]} 11... Bxc5 {[%clk 0:02:46.2]} 12. d4 {[%clk 0:02:22.2]} 12...
Be7 {[%clk 0:02:44.8]} 13. Bxf6 {[%clk 0:02:21.8]} 13... Bxf6 {[%clk 0:02:42.2]}
14. O-O {[%clk 0:02:21.5]} 14... Be7 {[%clk 0:02:41]} 15. Qb3 {[%clk 0:02:20.6]}
15... f5 {[%clk 0:02:40.5]} 16. Rac1 {[%clk 0:02:18.7]} 16... Rac8 {[%clk
0:02:39.7]} 17. Nf3 {[%clk 0:02:17.3]} 17... Bf6 {[%clk 0:02:40]} 18. a3 {[%clk
0:02:07]} 18... h6 {[%clk 0:02:36.4]} 19. g3 {[%clk 0:02:07]} 19... g5 {[%clk
0:02:33.9]} 20. Ne5 {[%clk 0:02:00.7]} 20... Bxe5 {[%clk 0:02:32.4]} 21. fxe5
{[%clk 0:02:00.4]} 21... g4 {[%clk 0:02:30.1]} 22. Qb4 {[%clk 0:01:49.2]} 22...
h5 {[%clk 0:02:28.1]} 23. Rc5 {[%clk 0:01:41.2]} 23... b6 {[%clk 0:02:26]} 24.
Rc3 {[%clk 0:01:34.9]} 24... Rxc3 {[%clk 0:02:24.3]} 25. bxc3 {[%clk 0:01:34.9]}
25... Rc8 {[%clk 0:02:21.2]} 26. Rc1 {[%clk 0:01:25.1]} 26... Rc4 {[%clk
0:02:21.3]} 27. Qb3 {[%clk 0:01:19.8]} 27... Qa4 {[%clk 0:02:20.9]} 28. Qb2
{[%clk 0:01:16.9]} 28... Qc6 {[%clk 0:02:15.1]} 29. h3 {[%clk 0:01:15.7]} 29...
b5 {[%clk 0:02:11]} 30. hxg4 {[%clk 0:01:14.1]} 30... hxg4 {[%clk 0:02:10.8]}
31. Qh2 {[%clk 0:01:08.1]} 31... Rxc3 {[%clk 0:02:09.4]} 32. Rxc3 {[%clk
0:01:08.1]} 32... Qxc3 {[%clk 0:02:10.3]} 33. Qh6 {[%clk 0:01:07.5]} 33... Qe1+
{[%clk 0:02:02]} 34. Kg2 {[%clk 0:01:07]} 34... Qe2+ {[%clk 0:02:00.9]} 35. Kg1
{[%clk 0:01:05.9]} 35... Qd1+ {[%clk 0:01:58.2]} 36. Kh2 {[%clk 0:00:58.6]}
36... Qc2+ {[%clk 0:01:57.2]} 37. Kg1 {[%clk 0:00:58]} 37... Qc6 {[%clk
0:01:55.4]} 38. Qf6 {[%clk 0:00:52.5]} 38... Qd7 {[%clk 0:01:44]} 39. Qg6+
{[%clk 0:00:49.5]} 39... Kf8 {[%clk 0:01:44.1]} 40. Qh6+ {[%clk 0:00:47]} 40...
Ke8 {[%clk 0:01:39.2]} 41. Qh8+ {[%clk 0:00:44.1]} 41... Ke7 {[%clk 0:01:37.4]}
42. Qf6+ {[%clk 0:00:35.4]} 42... Ke8 {[%clk 0:01:37.4]} 43. Qh8+ {[%clk
0:00:35.1]} 43... Kf7 {[%clk 0:01:37.4]} 44. Qh7+ {[%clk 0:00:34.4]} 44... Ke8
{[%clk 0:01:37.4]} 45. Qh8+ {[%clk 0:00:33.4]} 1/2-1/2

[Event "Late-Titled-Tuesday-Blitz-October-24-2023"]
[Site "Chess.com"]
[Date "2023.10.24"]
[Round "5"]
[White "vangulio"]
[Black "sergiochess83"]
[Result "0-1"]
[WhiteElo "2505"]
[BlackElo "2867"]
[TimeControl "180+1"]
[EndTime "14:54:16 PDT"]
[Termination "sergiochess83 won by resignation"]

1. e4 {[%clk 0:02:57.9]} 1... e6 {[%clk 0:02:52.9]} 2. d4 {[%clk 0:02:57.6]}
2... d5 {[%clk 0:02:52.4]} 3. e5 {[%clk 0:02:58]} 3... c5 {[%clk 0:02:51.8]} 4.
c3 {[%clk 0:02:58.7]} 4... Nc6 {[%clk 0:02:51.8]} 5. Nf3 {[%clk 0:02:59.3]} 5...
Bd7 {[%clk 0:02:52.3]} 6. Bd3 {[%clk 0:02:59.5]} 6... cxd4 {[%clk 0:02:51.3]} 7.
cxd4 {[%clk 0:02:59.4]} 7... Qb6 {[%clk 0:02:51.5]} 8. O-O {[%clk 0:02:55.7]}
8... Nxd4 {[%clk 0:02:51.2]} 9. Nxd4 {[%clk 0:02:56.1]} 9... Qxd4 {[%clk
0:02:51.2]} 10. Nc3 {[%clk 0:02:56.9]} 10... Qb6 {[%clk 0:02:50.7]} 11. Qe2
{[%clk 0:02:49.5]} 11... a6 {[%clk 0:02:42.2]} 12. Kh1 {[%clk 0:02:44.7]} 12...
Ne7 {[%clk 0:02:30.3]} 13. Be3 {[%clk 0:02:40.8]} 13... d4 {[%clk 0:02:16.3]}
14. Ne4 {[%clk 0:02:40]} 14... Ng6 {[%clk 0:02:08]} 15. Bg5 {[%clk 0:02:26.9]}
15... h6 {[%clk 0:02:00]} 16. Bd2 {[%clk 0:01:57.2]} 16... Nxe5 {[%clk
0:01:57.4]} 17. a4 {[%clk 0:01:42.9]} 17... Be7 {[%clk 0:01:47.8]} 18. a5 {[%clk
0:01:40.8]} 18... Qb3 {[%clk 0:01:41.4]} 19. Nc5 {[%clk 0:01:30.6]} 19... Bxc5
{[%clk 0:01:27.2]} 20. Qxe5 {[%clk 0:01:29.9]} 20... Qxd3 {[%clk 0:01:27.3]} 21.
Qxg7 {[%clk 0:01:27.1]} 21... O-O-O {[%clk 0:00:24.4]} 22. Bf4 {[%clk
0:01:26.2]} 22... Bc6 {[%clk 0:00:21]} 23. Qe5 {[%clk 0:01:20.2]} 23... Bd6
{[%clk 0:00:19.4]} 24. Qf6 {[%clk 0:01:16.6]} 24... Qe4 {[%clk 0:00:14.7]} 0-1

[Event "Late-Titled-Tuesday-Blitz-October-24-2023"]
[Site "Chess.com"]
[Date "2023.10.24"]
[Round "5"]
[White "KorolDimitriy75"]
[Black "whitemirrorninja"]
[Result "0-1"]
[WhiteElo "2358"]
[BlackElo "2565"]
[TimeControl "180+1"]
[EndTime "14:54:23 PDT"]
[Termination "whitemirrorninja won on time"]

1. d4 {[%clk 0:03:00.9]} 1... b6 {[%clk 0:02:56.3]} 2. c4 {[%clk 0:03:00.9]}
2... Bb7 {[%clk 0:02:56.9]} 3. Nc3 {[%clk 0:03:01.5]} 3... e6 {[%clk 0:02:56.6]}
4. Qc2 {[%clk 0:02:59.3]} 4... g6 {[%clk 0:02:55.2]} 5. e4 {[%clk 0:02:57.6]}
5... Bg7 {[%clk 0:02:55.3]} 6. Be3 {[%clk 0:02:56.7]} 6... Ne7 {[%clk
0:02:50.1]} 7. h4 {[%clk 0:02:37.3]} 7... Nbc6 {[%clk 0:02:35.8]} 8. O-O-O
{[%clk 0:02:35.1]} 8... h6 {[%clk 0:02:32.9]} 9. f3 {[%clk 0:02:22.5]} 9... e5
{[%clk 0:02:31.6]} 10. Nge2 {[%clk 0:02:16.4]} 10... d6 {[%clk 0:02:28.4]} 11.
d5 {[%clk 0:02:12.2]} 11... Na5 {[%clk 0:02:15.7]} 12. Ng3 {[%clk 0:01:32.6]}
12... Qd7 {[%clk 0:02:06.4]} 13. b4 {[%clk 0:01:24.8]} 13... f5 {[%clk
0:02:02.3]} 14. exf5 {[%clk 0:00:59.7]} 14... gxf5 {[%clk 0:02:03.2]} 15. Nh5
{[%clk 0:00:57.4]} 15... Ng6 {[%clk 0:01:54]} 16. Nxg7+ {[%clk 0:00:47.8]} 16...
Qxg7 {[%clk 0:01:52.9]} 17. bxa5 {[%clk 0:00:48.4]} 17... O-O {[%clk 0:01:49.4]}
18. Bd3 {[%clk 0:00:34.1]} 18... e4 {[%clk 0:01:47]} 19. fxe4 {[%clk 0:00:32.3]}
19... f4 {[%clk 0:01:47.6]} 20. Bd2 {[%clk 0:00:12.9]} 20... bxa5 {[%clk
0:01:48]} 21. Rdf1 {[%clk 0:00:10.1]} 21... Rab8 {[%clk 0:01:47.2]} 22. Nb5
{[%clk 0:00:06.1]} 22... Ba6 {[%clk 0:01:46]} 23. Bc3 {[%clk 0:00:06]} 23... Ne5
{[%clk 0:01:45.3]} 24. Nd4 {[%clk 0:00:04.9]} 24... Qg3 {[%clk 0:01:40.2]} 25.
Nf5 {[%clk 0:00:03.5]} 25... Qxd3 {[%clk 0:01:39.4]} 26. Bxe5 {[%clk 0:00:03]}
26... Qxc2+ {[%clk 0:01:37.7]} 27. Kxc2 {[%clk 0:00:03.4]} 27... dxe5 {[%clk
0:01:38.6]} 28. Nxh6+ {[%clk 0:00:03.3]} 28... Kh7 {[%clk 0:01:38.2]} 29. Nf5
{[%clk 0:00:02.9]} 29... Bxc4 {[%clk 0:01:37.2]} 30. Rb1 {[%clk 0:00:02]} 30...
Bxa2 {[%clk 0:01:31.9]} 31. Ra1 {[%clk 0:00:01.8]} 31... Bxd5 {[%clk 0:01:30.7]}
0-1

[Event "Late-Titled-Tuesday-Blitz-October-24-2023"]
[Site "Chess.com"]
[Date "2023.10.24"]
[Round "5"]
[White "Willi_Skibbe"]
[Black "JackRodgers"]
[Result "0-1"]
[WhiteElo "2228"]
[BlackElo "2517"]
[TimeControl "180+1"]
[EndTime "14:54:23 PDT"]
[Termination "JackRodgers won by checkmate"]

1. d4 {[%clk 0:02:47.7]} 1... Nf6 {[%clk 0:02:59.6]} 2. c4 {[%clk 0:02:47]} 2...
c5 {[%clk 0:02:59.2]} 3. d5 {[%clk 0:02:34.4]} 3... e5 {[%clk 0:02:58]} 4. Nc3
{[%clk 0:02:34.2]} 4... d6 {[%clk 0:02:57.9]} 5. e4 {[%clk 0:02:19.8]} 5... Be7
{[%clk 0:02:57.8]} 6. Bd3 {[%clk 0:02:17.8]} 6... Na6 {[%clk 0:02:51.9]} 7. h3
{[%clk 0:02:08.6]} 7... O-O {[%clk 0:02:48.7]} 8. g4 {[%clk 0:02:07.2]} 8... Ne8
{[%clk 0:02:47.3]} 9. Nf3 {[%clk 0:02:00.9]} 9... Rb8 {[%clk 0:02:39.7]} 10. Be3
{[%clk 0:01:59.4]} 10... Nac7 {[%clk 0:02:38.4]} 11. a4 {[%clk 0:01:59.1]} 11...
a6 {[%clk 0:02:37.3]} 12. Qe2 {[%clk 0:01:52.2]} 12... Bd7 {[%clk 0:02:36.3]}
13. O-O {[%clk 0:01:45.7]} 13... g5 {[%clk 0:02:29.4]} 14. a5 {[%clk 0:01:32.5]}
14... b6 {[%clk 0:02:24.1]} 15. axb6 {[%clk 0:01:32]} 15... Rxb6 {[%clk
0:02:25]} 16. Rfb1 {[%clk 0:01:23.2]} 16... h6 {[%clk 0:02:15.4]} 17. Ne1 {[%clk
0:01:22.8]} 17... Kg7 {[%clk 0:02:13]} 18. Nc2 {[%clk 0:01:20.1]} 18... Rb3
{[%clk 0:01:59]} 19. Na2 {[%clk 0:00:29]} 19... Qb8 {[%clk 0:01:52.7]} 20. Na3
{[%clk 0:00:28.6]} 20... Rh8 {[%clk 0:01:47.6]} 21. Bc2 {[%clk 0:00:27.9]} 21...
Rb7 {[%clk 0:01:45.6]} 22. Qd2 {[%clk 0:00:19.5]} 22... f6 {[%clk 0:01:37.3]}
23. b4 {[%clk 0:00:19.3]} 23... cxb4 {[%clk 0:01:33.5]} 24. Nxb4 {[%clk
0:00:18.7]} 24... h5 {[%clk 0:01:31.7]} 25. Nc6 {[%clk 0:00:18]} 25... Bxc6
{[%clk 0:01:29.6]} 26. dxc6 {[%clk 0:00:18.9]} 26... Rxb1+ {[%clk 0:01:29.2]}
27. Rxb1 {[%clk 0:00:19.8]} 27... Qc8 {[%clk 0:01:29.7]} 28. Qa5 {[%clk
0:00:19.1]} 28... hxg4 {[%clk 0:01:28.3]} 29. c5 {[%clk 0:00:18.2]} 29... gxh3
{[%clk 0:01:27]} 30. cxd6 {[%clk 0:00:17.6]} 30... Qg4+ {[%clk 0:01:21.4]} 31.
Kf1 {[%clk 0:00:17.6]} 31... h2 {[%clk 0:01:18.3]} 32. dxc7 {[%clk 0:00:16.7]}
32... h1=Q# {[%clk 0:01:18.4]} 0-1

[Event "Late-Titled-Tuesday-Blitz-October-24-2023"]
[Site "Chess.com"]
[Date "2023.10.24"]
[Round "5"]
[White "Felix-Rose"]
[Black "Dacean99"]
[Result "0-1"]
[WhiteElo "2319"]
[BlackElo "2580"]
[TimeControl "180+1"]
[EndTime "14:54:24 PDT"]
[Termination "Dacean99 won on time"]

1. e4 {[%clk 0:03:00.1]} 1... c5 {[%clk 0:02:31.2]} 2. Nf3 {[%clk 0:03:00.3]}
2... Nc6 {[%clk 0:02:29.7]} 3. d4 {[%clk 0:03:00.6]} 3... cxd4 {[%clk
0:02:30.6]} 4. Nxd4 {[%clk 0:03:01.5]} 4... e5 {[%clk 0:02:31.3]} 5. Nb5 {[%clk
0:03:01.8]} 5... a6 {[%clk 0:02:31.2]} 6. N5c3 {[%clk 0:03:01.6]} 6... Nf6
{[%clk 0:02:29.5]} 7. Bg5 {[%clk 0:03:01.2]} 7... Bb4 {[%clk 0:02:29.8]} 8. a3
{[%clk 0:02:54.6]} 8... Ba5 {[%clk 0:02:29.2]} 9. b4 {[%clk 0:02:52]} 9... Bb6
{[%clk 0:02:29.1]} 10. Nd5 {[%clk 0:02:51.1]} 10... Bxf2+ {[%clk 0:02:28]} 11.
Ke2 {[%clk 0:02:20.7]} 11... Nd4+ {[%clk 0:02:25.9]} 12. Kd3 {[%clk 0:02:18.8]}
12... Ne6 {[%clk 0:02:06.6]} 13. Bxf6 {[%clk 0:02:17.7]} 13... gxf6 {[%clk
0:02:06.3]} 14. Qf3 {[%clk 0:02:14.3]} 14... Bd4 {[%clk 0:02:02.9]} 15. Nxf6+
{[%clk 0:01:59.9]} 15... Kf8 {[%clk 0:01:58.5]} 16. c3 {[%clk 0:01:50.4]} 16...
Nf4+ {[%clk 0:01:50.5]} 17. Kc2 {[%clk 0:01:50.6]} 17... Qxf6 {[%clk 0:01:47.3]}
18. cxd4 {[%clk 0:01:30]} 18... d5 {[%clk 0:01:45.2]} 19. exd5 {[%clk
0:01:11.9]} 19... Bf5+ {[%clk 0:01:43.3]} 20. Kb2 {[%clk 0:01:12]} 20... Rc8
{[%clk 0:01:39.5]} 21. dxe5 {[%clk 0:01:01.4]} 21... Qxe5+ {[%clk 0:01:37.3]}
22. Nc3 {[%clk 0:01:00.1]} 22... Nd3+ {[%clk 0:01:35.6]} 23. Bxd3 {[%clk
0:00:52.3]} 23... Qxc3+ {[%clk 0:01:35.4]} 24. Ka2 {[%clk 0:00:52.5]} 24... Qd2+
{[%clk 0:01:33.8]} 25. Kb3 {[%clk 0:00:40.2]} 25... Bxd3 {[%clk 0:01:32.3]} 26.
Rac1 {[%clk 0:00:14.9]} 26... Bc2+ {[%clk 0:01:30]} 27. Kb2 {[%clk 0:00:03.1]}
27... Bd1+ {[%clk 0:01:29.3]} 0-1

[Event "Late-Titled-Tuesday-Blitz-October-24-2023"]
[Site "Chess.com"]
[Date "2023.10.24"]
[Round "5"]
[White "Lion-Al-Messi"]
[Black "topin8"]
[Result "1/2-1/2"]
[WhiteElo "2653"]
[BlackElo "2458"]
[TimeControl "180+1"]
[EndTime "14:54:30 PDT"]
[Termination "Game drawn - insufficient material"]

1. e4 {[%clk 0:02:58]} 1... e5 {[%clk 0:02:58.9]} 2. Nf3 {[%clk 0:02:57.8]} 2...
Nc6 {[%clk 0:02:59.3]} 3. Bb5 {[%clk 0:02:57]} 3... Nf6 {[%clk 0:02:59.1]} 4.
O-O {[%clk 0:02:56.7]} 4... Nxe4 {[%clk 0:02:59.2]} 5. d4 {[%clk 0:02:56.7]}
5... Nd6 {[%clk 0:02:59.1]} 6. Bxc6 {[%clk 0:02:57.3]} 6... dxc6 {[%clk
0:03:00]} 7. dxe5 {[%clk 0:02:58]} 7... Nf5 {[%clk 0:03:00.5]} 8. Qxd8+ {[%clk
0:02:58.8]} 8... Kxd8 {[%clk 0:03:01.3]} 9. Nc3 {[%clk 0:02:58.8]} 9... h5
{[%clk 0:02:41.1]} 10. Bg5+ {[%clk 0:02:57.1]} 10... Ke8 {[%clk 0:02:40.8]} 11.
Rad1 {[%clk 0:02:57.3]} 11... Be6 {[%clk 0:02:40.3]} 12. Rd2 {[%clk 0:02:53.3]}
12... Be7 {[%clk 0:02:26.7]} 13. Bxe7 {[%clk 0:02:52.7]} 13... Kxe7 {[%clk
0:02:25.9]} 14. Ng5 {[%clk 0:02:51.6]} 14... Rad8 {[%clk 0:02:19.5]} 15. Rfd1
{[%clk 0:02:50.8]} 15... Rxd2 {[%clk 0:02:19]} 16. Rxd2 {[%clk 0:02:51.7]} 16...
f6 {[%clk 0:02:00.3]} 17. exf6+ {[%clk 0:02:49]} 17... gxf6 {[%clk 0:02:01.2]}
18. Nxe6 {[%clk 0:02:48.3]} 18... Kxe6 {[%clk 0:02:02.1]} 19. g3 {[%clk
0:02:47.3]} 19... Re8 {[%clk 0:01:44.9]} 20. Ne4 {[%clk 0:02:46.9]} 20... Kf7
{[%clk 0:01:38.9]} 21. Rd7+ {[%clk 0:02:42.8]} 21... Re7 {[%clk 0:01:17.9]} 22.
Rxe7+ {[%clk 0:02:42.4]} 22... Kxe7 {[%clk 0:01:18.1]} 23. Nc5 {[%clk
0:02:40.7]} 23... b6 {[%clk 0:01:15.1]} 24. Nd3 {[%clk 0:02:40.5]} 24... Kd6
{[%clk 0:00:52.1]} 25. h4 {[%clk 0:02:40]} 25... Nd4 {[%clk 0:00:40.1]} 26. c3
{[%clk 0:02:39.8]} 26... Ne6 {[%clk 0:00:40.7]} 27. Kg2 {[%clk 0:02:39.4]} 27...
f5 {[%clk 0:00:40.1]} 28. Kf3 {[%clk 0:02:39.5]} 28... c5 {[%clk 0:00:35.8]} 29.
Nf4 {[%clk 0:02:39.7]} 29... Ng7 {[%clk 0:00:36.2]} 30. Ke3 {[%clk 0:02:39.2]}
30... b5 {[%clk 0:00:30.7]} 31. Nd3 {[%clk 0:02:33.2]} 31... Ne6 {[%clk
0:00:28.7]} 32. b3 {[%clk 0:02:30.5]} 32... a5 {[%clk 0:00:28.4]} 33. a4 {[%clk
0:02:29.4]} 33... c4 {[%clk 0:00:26]} 34. bxc4 {[%clk 0:02:15.9]} 34... bxa4
{[%clk 0:00:26]} 35. Kd2 {[%clk 0:02:15.4]} 35... Nc5 {[%clk 0:00:20.5]} 36. Nf4
{[%clk 0:02:08]} 36... Ne4+ {[%clk 0:00:20]} 37. Kc2 {[%clk 0:02:08.3]} 37...
Nxf2 {[%clk 0:00:19.3]} 38. Nxh5 {[%clk 0:02:08.7]} 38... Ne4 {[%clk 0:00:19.8]}
39. Kb2 {[%clk 0:02:01.9]} 39... Kc5 {[%clk 0:00:18.6]} 40. Ng7 {[%clk
0:01:52.5]} 40... Nxg3 {[%clk 0:00:18.2]} 41. h5 {[%clk 0:01:53]} 41... Nxh5
{[%clk 0:00:14.2]} 42. Nxh5 {[%clk 0:01:53.9]} 42... Kxc4 {[%clk 0:00:14.8]} 43.
Nf4 {[%clk 0:01:51.9]} 43... a3+ {[%clk 0:00:15.2]} 44. Kxa3 {[%clk 0:01:52.2]}
44... Kxc3 {[%clk 0:00:15.4]} 45. Nd5+ {[%clk 0:01:52.8]} 45... Kc4 {[%clk
0:00:11]} 46. Ne3+ {[%clk 0:01:53.1]} 46... Kd3 {[%clk 0:00:11.1]} 47. Nxf5
{[%clk 0:01:54]} 47... c5 {[%clk 0:00:11.7]} 48. Nd6 {[%clk 0:01:54.3]} 48... c4
{[%clk 0:00:11.6]} 49. Nxc4 {[%clk 0:01:54.3]} 49... Kxc4 {[%clk 0:00:12]} 50.
Ka4 {[%clk 0:01:55.2]} 50... Kc3 {[%clk 0:00:12.4]} 51. Kxa5 {[%clk 0:01:56.1]}
1/2-1/2

[Event "Late-Titled-Tuesday-Blitz-October-24-2023"]
[Site "Chess.com"]
[Date "2023.10.24"]
[Round "5"]
[White "FM_Kappeler"]
[Black "ArturoCaceres"]
[Result "0-1"]
[WhiteElo "2287"]
[BlackElo "2487"]
[TimeControl "180+1"]
[EndTime "14:54:36 PDT"]
[Termination "ArturoCaceres won by checkmate"]

1. d4 {[%clk 0:03:00.9]} 1... b6 {[%clk 0:03:00.8]} 2. e4 {[%clk 0:02:59]} 2...
Bb7 {[%clk 0:03:01.7]} 3. Bd3 {[%clk 0:02:59.1]} 3... d6 {[%clk 0:03:02.6]} 4.
Nf3 {[%clk 0:02:56.1]} 4... e6 {[%clk 0:03:03.5]} 5. O-O {[%clk 0:02:55.4]} 5...
Nd7 {[%clk 0:03:04.4]} 6. Re1 {[%clk 0:02:50.7]} 6... Ne7 {[%clk 0:03:05.3]} 7.
c4 {[%clk 0:02:47.3]} 7... g6 {[%clk 0:03:05.1]} 8. Nc3 {[%clk 0:02:46.9]} 8...
Bg7 {[%clk 0:03:05.7]} 9. d5 {[%clk 0:02:42.7]} 9... e5 {[%clk 0:03:04.3]} 10.
Bd2 {[%clk 0:02:30.6]} 10... O-O {[%clk 0:03:05.2]} 11. b4 {[%clk 0:02:29.3]}
11... a5 {[%clk 0:03:03.7]} 12. a3 {[%clk 0:02:29.2]} 12... f5 {[%clk
0:03:03.3]} 13. Ng5 {[%clk 0:02:26.4]} 13... Qc8 {[%clk 0:02:46.6]} 14. Ne6
{[%clk 0:02:25.8]} 14... Rf7 {[%clk 0:02:46.9]} 15. Nb5 {[%clk 0:02:17.6]} 15...
fxe4 {[%clk 0:02:17.9]} 16. Bxe4 {[%clk 0:02:15.8]} 16... Ba6 {[%clk 0:02:09.2]}
17. Nexc7 {[%clk 0:02:00.7]} 17... Bxb5 {[%clk 0:01:41.5]} 18. Nxb5 {[%clk
0:02:00.4]} 18... Qb8 {[%clk 0:01:28.8]} 19. Qg4 {[%clk 0:01:44.4]} 19... Nf6
{[%clk 0:01:12.5]} 20. Qe2 {[%clk 0:01:33.3]} 20... Nxe4 {[%clk 0:01:11.7]} 21.
Qxe4 {[%clk 0:01:32.9]} 21... Nf5 {[%clk 0:01:12]} 22. Rac1 {[%clk 0:01:25.7]}
22... axb4 {[%clk 0:01:11.8]} 23. axb4 {[%clk 0:01:23.7]} 23... Ra2 {[%clk
0:01:11]} 24. Rc2 {[%clk 0:01:18.4]} 24... Qa8 {[%clk 0:01:10.4]} 25. Rxa2
{[%clk 0:01:15.1]} 25... Qxa2 {[%clk 0:01:11.2]} 26. Be3 {[%clk 0:00:58.4]}
26... Qb3 {[%clk 0:00:46.7]} 27. Bxb6 {[%clk 0:00:32.3]} 27... Qxb4 {[%clk
0:00:45.1]} 28. Be3 {[%clk 0:00:31.1]} 28... Qxe1# {[%clk 0:00:40.1]} 0-1

[Event "Late-Titled-Tuesday-Blitz-October-24-2023"]
[Site "Chess.com"]
[Date "2023.10.24"]
[Round "5"]
[White "IlanSchnaider"]
[Black "OPQRC"]
[Result "1-0"]
[WhiteElo "2773"]
[BlackElo "2588"]
[TimeControl "180+1"]
[EndTime "14:54:38 PDT"]
[Termination "IlanSchnaider won by resignation"]

1. e4 {[%clk 0:03:00.9]} 1... c5 {[%clk 0:02:59.8]} 2. Nf3 {[%clk 0:03:01]} 2...
Nc6 {[%clk 0:03:00.4]} 3. d4 {[%clk 0:03:00.4]} 3... cxd4 {[%clk 0:03:01.3]} 4.
Nxd4 {[%clk 0:03:01.3]} 4... Nf6 {[%clk 0:03:01.5]} 5. Nc3 {[%clk 0:03:01.4]}
5... e5 {[%clk 0:03:00.9]} 6. Ndb5 {[%clk 0:03:01.2]} 6... d6 {[%clk 0:03:01.4]}
7. Bg5 {[%clk 0:03:00.9]} 7... a6 {[%clk 0:03:00.4]} 8. Na3 {[%clk 0:03:01.4]}
8... b5 {[%clk 0:03:00.7]} 9. Nd5 {[%clk 0:03:02]} 9... Be7 {[%clk 0:03:00.4]}
10. Bxf6 {[%clk 0:03:01.7]} 10... Bxf6 {[%clk 0:03:00.9]} 11. c3 {[%clk
0:03:02.3]} 11... Ne7 {[%clk 0:03:01]} 12. Nxf6+ {[%clk 0:03:02]} 12... gxf6
{[%clk 0:03:01.9]} 13. Nc2 {[%clk 0:03:02.6]} 13... Bb7 {[%clk 0:03:01.7]} 14.
Bd3 {[%clk 0:03:02.7]} 14... d5 {[%clk 0:03:01.7]} 15. exd5 {[%clk 0:03:03]}
15... Qxd5 {[%clk 0:03:00.1]} 16. Ne3 {[%clk 0:03:03.4]} 16... Qe6 {[%clk
0:02:58.7]} 17. Qc2 {[%clk 0:03:02]} 17... O-O-O {[%clk 0:02:50.9]} 18. Be4
{[%clk 0:02:57.8]} 18... Kb8 {[%clk 0:02:38.3]} 19. Bxb7 {[%clk 0:02:51]} 19...
Kxb7 {[%clk 0:02:39.2]} 20. Qe4+ {[%clk 0:02:49.9]} 20... Ka7 {[%clk 0:02:39.1]}
21. Qb4 {[%clk 0:02:46.8]} 21... Nd5 {[%clk 0:02:16.2]} 22. Nxd5 {[%clk
0:02:25.3]} 22... Qxd5 {[%clk 0:02:10.6]} 23. O-O {[%clk 0:02:24.8]} 23... Qd6
{[%clk 0:02:02]} 24. Qe4 {[%clk 0:02:23.4]} 24... Qd5 {[%clk 0:01:58.5]} 25. Qh4
{[%clk 0:02:20.1]} 25... Qe6 {[%clk 0:01:50.4]} 26. a4 {[%clk 0:02:19.2]} 26...
Rb8 {[%clk 0:01:32.9]} 27. Rfd1 {[%clk 0:02:13.3]} 27... Rhd8 {[%clk 0:01:05.2]}
28. Rxd8 {[%clk 0:02:11.8]} 28... Rxd8 {[%clk 0:01:06.1]} 29. axb5 {[%clk
0:02:12.1]} 29... Qa2 {[%clk 0:01:05.9]} 30. b6+ {[%clk 0:01:54.6]} 30... Kb7
{[%clk 0:00:56.9]} 31. Re1 {[%clk 0:01:41.2]} 31... Qxb2 {[%clk 0:00:51.1]} 32.
Qxf6 {[%clk 0:01:40.7]} 32... Rd7 {[%clk 0:00:38.8]} 33. h3 {[%clk 0:01:39.1]}
33... Qxc3 {[%clk 0:00:36.5]} 34. Rxe5 {[%clk 0:01:33.9]} 34... a5 {[%clk
0:00:33.5]} 35. Qf5 {[%clk 0:01:30.7]} 35... Rd1+ {[%clk 0:00:28.7]} 36. Kh2
{[%clk 0:01:30.7]} 36... Re1 {[%clk 0:00:15.8]} 37. Qd7+ {[%clk 0:01:27.9]}
37... Kxb6 {[%clk 0:00:15.5]} 38. Qd6+ {[%clk 0:01:28.3]} 38... Kb7 {[%clk
0:00:14.8]} 39. Qe7+ {[%clk 0:01:28.1]} 39... Kc6 {[%clk 0:00:12.7]} 40. Rxe1
{[%clk 0:01:27.3]} 40... Qxe1 {[%clk 0:00:12.4]} 41. Qxe1 {[%clk 0:01:27.1]} 1-0